bitfinex/quotes_SOLUSD_20251128
["timestamp","ask_amount","ask_price","bid_price","bid_amount"]
[1764316835187,0.28432314,139.18,139.16,0.67]
[1764316835363,3.16,139.17,139.16,7.85597298]
[1764316835906,3.16,139.17,139.16,11.33210916]
[1764316836484,3.16,139.18,139.16,11.33210916]
[1764316836674,3.16,139.18,139.17,0.67]
[1764316837075,3.16,139.18,139.17,7.85545663]
[1764316837489,3.16,139.18,139.17,11.33159281]
[1764316837793,3.16,139.18,139.17,7.85545663]
[1764316838706,3.16,139.18,139.17,11.33159281]
[1764316838986,11.96994492,139.21,139.17,11.33159281]
[1764316839191,12.67994492,139.21,139.18,0.67]
[1764316839373,11.96994492,139.21,139.16,10.66190481]
[1764316839572,0.71,139.2,139.17,0.67]
[1764316839788,0.85216157,139.2,139.16,7.18576863]
[1764316839990,0.99432314,139.2,139.16,7.85576863]
[1764316840294,0.28432314,139.18,139.15,0.67]
[1764316840593,3.16,139.17,139.15,0.67]
[1764316840960,3.16,139.17,139.13,17.96806027]
[1764316840961,0.67,139.16,139.13,11.37336604]
[1764316841165,11.01548875,139.17,139.13,7.18722986]
[1764316841467,11.01548875,139.17,139.14,0.71]
[1764316841893,3.16,139.17,139.14,0.71]
[1764316842794,3.83,139.17,139.14,0.71]
[1764316842990,3.83,139.17,139.13,7.8973985]
[1764316843178,0.67,139.16,139.13,7.8973985]
[1764316843782,11.01547231,139.17,139.14,0.71]
[1764316844999,11.01547231,139.17,139.14,7.89695221]
[1764316845297,11.01547231,139.17,139.14,0.71]
[1764316846402,10.34547231,139.17,139.14,0.71]
[1764316846773,11.01547231,139.17,139.14,0.71]
[1764316847980,9.09426806,139.16,139.14,0.71]
[1764316848484,16.28029059,139.16,139.14,0.71]
[1764316848684,9.09426806,139.16,139.14,4.18613618]
[1764316848998,9.09426806,139.16,139.14,0.71]
[1764316851691,7.4694376,139.18,139.14,11.37290787]
[1764316851897,11.96994492,139.17,139.15,3.47613618]
[1764316852189,11.96994492,139.17,139.15,0.71]
[1764316852396,11.96994492,139.17,139.14,7.89677169]
[1764316852593,11.96994492,139.17,139.15,0.71]
[1764316852898,3.16,139.16,139.15,0.71]
[1764316854395,3.16,139.16,139.15,7.89648939]
[1764316861722,17.96028313,139.2,139.15,7.89648939]
[1764316861723,0.28432314,139.2,139.15,10.11950509]
[1764316862007,8.80994492,139.18,139.16,0.71]
[1764316862403,8.80994492,139.18,139.16,2.9330157]
[1764316862608,8.80994492,139.18,139.16,0.71]
[1764316862803,9.09426806,139.18,139.17,0.71]
[1764316863009,9.09426806,139.18,139.16,0.71]
[1764316863508,9.76426806,139.18,139.15,7.89648939]
[1764316863884,9.09426806,139.18,139.16,2.9330157]
[1764316864092,9.09426806,139.18,139.16,0.71]
[1764316864997,9.76426806,139.18,139.15,25.86271288]
[1764316865702,9.76426806,139.18,139.16,0.71]
[1764316865901,9.09426806,139.18,139.16,7.89584081]
[1764316870311,0.95432314,139.17,139.12,9.09426806]
[1764316870509,14.19296062,139.16,139.11,0.1]
[1764316870716,14.91296062,139.16,139.11,0.82]
[1764316870899,8.80994492,139.14,139.11,8.00833302]
[1764316871246,3.16,139.13,139.11,8.00833302]
[1764316871519,3.16,139.13,139.12,0.72]
[1764316872908,3.16,139.13,139.11,9.51134872]
[1764316873212,3.16,139.13,139.11,8.00833302]
[1764316876422,9.09426806,139.14,139.11,10.23134872]
[1764316876623,3.16,139.13,139.12,2.9430157]
[1764316877521,3.16,139.13,139.11,10.23134872]
[1764316877700,3.16,139.13,139.12,0.72]
[1764316878814,3.16,139.13,139.12,2.9430157]
[1764316879122,3.16,139.13,139.12,10.1310548]
[1764316882005,8.80994492,139.16,139.12,10.1310548]
[1764316882304,3.16,139.15,139.14,2.2230157]
[1764316882829,3.16,139.15,139.14,2.9430157]
[1764316883507,3.16,139.17,139.15,7.18648939]
[1764316883816,3.16,139.17,139.15,10.12950509]
[1764316884718,3.16,139.17,139.15,2.9430157]
[1764316884902,11.96994492,139.17,139.15,0.72]
[1764316886218,11.96994492,139.17,139.15,7.90636127]
[1764316887806,11.96994492,139.17,139.15,10.12937697]
[1764316888411,0.71,139.18,139.15,10.12937697]
[1764316888611,3.16,139.18,139.17,2.2230157]
[1764316888909,3.16,139.18,139.17,2.9430157]
[1764316889823,3.16,139.18,139.17,2.2230157]
[1764316890016,3.16,139.18,139.16,2.2230157]
[1764316890324,3.16,139.18,139.16,10.12888283]
[1764316890528,9.80426806,139.17,139.13,16.308864]
[1764316890709,9.80426806,139.17,139.13,2.9430157]
[1764316890905,0.71,139.16,139.13,0.72]
[1764316891104,0.71,139.16,139.13,2.9430157]
[1764316891730,3.16,139.15,139.13,0.72]
[1764316892229,3.16,139.15,139.13,7.90710509]
[1764316894332,3.16,139.15,139.14,0.72]
[1764316894534,3.44432314,139.15,139.14,2.9430157]
[1764316895633,3.16,139.16,139.14,2.9430157]
[1764316895816,3.44432314,139.16,139.15,2.9430157]
[1764316896632,3.16,139.16,139.15,10.12950509]
[1764316897318,9.51994492,139.2,139.15,28.09572858]
[1764316897516,3.16,139.19,139.16,2.9430157]
[1764316897921,3.16,139.19,139.17,0.72]
[1764316898642,3.16,139.19,139.17,10.12818252]
[1764316899652,3.16,139.19,139.17,9.40818252]
[1764316899943,3.44432314,139.19,139.18,0.72]
[1764316900750,3.44432314,139.19,139.17,10.12818252]
[1764316902746,3.44432314,139.19,139.18,2.2230157]
[1764316903041,3.7541046,139.22,139.18,2.9430157]
[1764316903042,3.16,139.22,139.18,2.9430157]
[1764316903233,3.84,139.22,139.2,2.2230157]
[1764316903840,3.16,139.22,139.2,2.9430157]
[1764316904653,3.16,139.22,139.2,10.12665118]
[1764316906642,0.68,139.21,139.19,7.18419935]
[1764316906844,3.16,139.22,139.19,9.40721505]
[1764316907034,3.16,139.22,139.2,2.9430157]
[1764316907850,3.16,139.22,139.2,0.72]
[1764316908147,3.16,139.22,139.2,2.9430157]
[1764316908343,9.77426806,139.23,139.2,2.9430157]
[1764316908344,9.48994492,139.23,139.21,2.2230157]
[1764316908545,3.44432314,139.22,139.21,2.9430157]
[1764316908846,12.25426806,139.22,139.2,2.2230157]
[1764316909030,0.28432314,139.21,139.19,10.12733357]
[1764316910230,0.28432314,139.21,139.2,2.2230157]
[1764316910646,0.96432314,139.21,139.18,7.18480652]
[1764316910851,16.95786633,139.21,139.17,0.72]
[1764316911149,0.28432314,139.18,139.16,2.9430157]
[1764316911326,3.44432314,139.18,139.16,2.9430157]
[1764316911751,3.44432314,139.18,139.17,2.9430157]
[1764316914256,3.44432314,139.18,139.17,10.12847233]
[1764316914557,3.44432314,139.18,139.17,11.37704819]
[1764316918239,0.68,139.23,139.17,29.34068977]
[1764316918434,0.28432314,139.21,139.2,3.47159156]
[1764316918757,0.14216157,139.21,139.2,3.47159156]
[1764316919345,0.82216157,139.21,139.2,3.47159156]
[1764316919644,0.96432314,139.21,139.2,3.47159156]
[1764316920443,0.96432314,139.21,139.19,3.47159156]
[1764316922066,0.96432314,139.21,139.19,10.65588387]
[1764316922264,0.28432314,139.21,139.2,4.19159156]
[1764316922447,3.16,139.22,139.2,4.19159156]
[1764316922649,0.14216157,139.21,139.19,7.18429231]
[1764316922836,0.28432314,139.21,139.2,3.47159156]
[1764316924153,0.28432314,139.21,139.2,10.6554996]
[1764316924758,0.28432314,139.21,139.2,3.47159156]
[1764316926158,3.12432314,139.22,139.2,3.47159156]
[1764316926341,8.80994492,139.23,139.21,3.47159156]
[1764316926539,3.16,139.22,139.21,3.47159156]
[1764316927150,3.16,139.22,139.2,7.18381268]
[1764316927354,3.16,139.22,139.21,3.47159156]
[1764316927658,3.16,139.22,139.2,0.72]
[1764316927859,9.48994492,139.21,139.18,10.65636128]
[1764316928163,0.28432314,139.2,139.19,3.47159156]
[1764316928361,7.18254445,139.23,139.19,3.47159156]
[1764316928543,12.93426806,139.22,139.2,3.47159156]
[1764316932163,12.93426806,139.22,139.2,10.65543316]
[1764316932464,12.25426806,139.22,139.2,10.65543316]
[1764316932846,0.28432314,139.24,139.21,4.18159156]
[1764316933063,12.25426806,139.23,139.22,3.47159156]
[1764316933360,12.25426806,139.23,139.21,0.71]
[1764316933361,0.28432314,139.22,139.21,4.18159156]
[1764316933564,0.28432314,139.22,139.21,3.47159156]
[1764316933869,9.77426806,139.22,139.19,3.47159156]
[1764316934278,0.69,139.21,139.19,3.47159156]
[1764316934452,9.09426806,139.22,139.19,11.31585589]
[1764316934652,9.78426806,139.22,139.2,3.47159156]
[1764316936967,9.09426806,139.22,139.2,3.47159156]
[1764316937174,9.09426806,139.22,139.2,11.31545405]
[1764316938871,0.28432314,139.22,139.2,11.31545405]
[1764316939974,0.97432314,139.22,139.2,10.65545405]
[1764316940966,0.28432314,139.19,139.17,3.47159156]
[1764316941170,3.44432314,139.19,139.17,10.65704819]
[1764316941472,3.44432314,139.19,139.17,11.31704819]
[1764316943381,3.44432314,139.19,139.18,0.66]
[1764316943776,3.44432314,139.19,139.17,10.65704819]
[1764316943970,3.44432314,139.19,139.17,11.31704819]
[1764316944979,3.44432314,139.19,139.18,3.47159156]
[1764316945678,3.16,139.19,139.18,11.31653192]
[1764316946064,3.16,139.2,139.18,11.31653192]
[1764316946270,3.44432314,139.2,139.19,4.13159156]
[1764316947783,3.44432314,139.2,139.19,11.31601572]
[1764316949484,3.16,139.2,139.19,11.31601572]
[1764316950162,0.28432314,139.21,139.19,11.31601572]
[1764316950361,3.44432314,139.21,139.19,11.31601572]
[1764316950669,3.44432314,139.21,139.2,3.47159156]
[1764316951574,3.44432314,139.21,139.2,10.6554996]
[1764316952078,4.13432314,139.21,139.2,7.18390804]
[1764316952457,4.13432314,139.21,139.16,3.47159156]
[1764316952458,4.13432314,139.21,139.16,18.62415929]
[1764316952665,0.69,139.2,139.17,11.31704819]
[1764316954578,0.69,139.2,139.18,3.47159156]
[1764316955700,0.69,139.2,139.18,11.31632942]
[1764316955990,12.25426806,139.21,139.19,3.47159156]
[1764316956186,12.94426806,139.21,139.19,3.47159156]
[1764316956569,12.94426806,139.21,139.18,7.84473786]
[1764316956763,12.94426806,139.21,139.19,3.47159156]
[1764316958195,3.44432314,139.2,139.19,3.47159156]
[1764316958395,0.28432314,139.19,139.18,0.66]
[1764316958570,0.28432314,139.19,139.18,3.47159156]
[1764316959675,0.28432314,139.19,139.18,11.31653192]
[1764316959992,0.28432314,139.19,139.18,10.65653192]
[1764316962892,3.16,139.2,139.18,11.33653192]
[1764316963075,3.44432314,139.2,139.19,3.47159156]
[1764316963474,3.44432314,139.2,139.19,4.15159156]
[1764316963801,3.44432314,139.2,139.19,11.33601572]
[1764316964403,3.44432314,139.2,139.19,10.65601572]
[1764316965286,3.44432314,139.2,139.19,11.33601572]
[1764316967503,3.16,139.2,139.19,7.86442416]
[1764316967697,3.16,139.2,139.19,11.33601572]
[1764316968199,3.16,139.2,139.19,10.65601572]
[1764316968398,3.44432314,139.2,139.18,11.33633392]
[1764316968607,3.88,139.2,139.18,7.18474236]
[1764316969185,3.16,139.2,139.18,11.33633392]
[1764316970685,3.88,139.2,139.18,7.18474236]
[1764316971607,3.88,139.2,139.18,7.86474236]
[1764316972504,3.16,139.2,139.18,7.86474236]
[1764316972713,3.16,139.2,139.18,11.33633392]
[1764316973822,0.28432314,139.19,139.15,25.15208465]
[1764316974009,0.28432314,139.19,139.18,3.47159156]
[1764316974722,0.28432314,139.19,139.18,2.22168666]
[1764316975115,0.28432314,139.19,139.18,2.90168666]
[1764316976523,0.28432314,139.19,139.18,2.22168666]
[1764316976818,0.28432314,139.19,139.17,10.08670487]
[1764316977403,0.28432314,139.19,139.17,9.40670487]
[1764316977618,0.28432314,139.19,139.18,0.68]
[1764316978123,0.28432314,139.19,139.18,7.86494036]
[1764316980399,0.28432314,139.19,139.18,7.18494036]
[1764316980797,3.44432314,139.19,139.18,7.18494036]
[1764316981699,3.44432314,139.19,139.18,7.86494036]
[1764316982227,3.44432314,139.19,139.18,10.08662702]
[1764316982931,3.16,139.19,139.18,10.08662702]
[1764316983501,11.96994492,139.22,139.18,28.04897793]
[1764316983702,11.96994492,139.22,139.2,2.22168666]
[1764316983902,0.28432314,139.21,139.2,2.22168666]
[1764316984206,0.14216157,139.21,139.2,2.22168666]
[1764316984406,0.14216157,139.21,139.2,9.4055947]
[1764316984622,0.28432314,139.21,139.2,9.4055947]
[1764316984923,0.28432314,139.21,139.2,10.0855947]
[1764316985607,0.28432314,139.21,139.2,7.86390804]
[1764316985926,0.28432314,139.19,139.17,0.68]
[1764316986106,3.44432314,139.19,139.16,0.68]
[1764316986911,3.44432314,139.19,139.16,2.90168666]
[1764316987112,4.16432314,139.19,139.16,2.90168666]
[1764316987428,3.44432314,139.19,139.17,7.86545663]
[1764316988023,3.44432314,139.19,139.17,7.18545663]
[1764316988024,4.16432314,139.19,139.17,7.18545663]
[1764316988930,3.44432314,139.19,139.17,7.86545663]
[1764316989228,4.16432314,139.19,139.17,7.86545663]
[1764316989528,3.44432314,139.19,139.17,7.86545663]
[1764316989924,4.16432314,139.19,139.16,7.18574006]
[1764316990127,0.72,139.18,139.15,10.08798378]
[1764316990625,0.72,139.18,139.16,0.71]
[1764316992018,0.72,139.18,139.15,7.89629712]
[1764316992424,0.72,139.18,139.15,7.18629712]
[1764316993116,10.62906551,139.19,139.15,7.18629712]
[1764316993319,0.28432314,139.17,139.16,0.71]
[1764316996233,0.28432314,139.17,139.15,9.40798378]
[1764316996418,0.28432314,139.17,139.15,10.10798378]
[1764316997136,0.28432314,139.17,139.15,7.88629712]
[1764316997426,0.98432314,139.17,139.15,7.18629712]
[1764316997631,0.98432314,139.17,139.14,2.92168666]
[1764316997820,3.86,139.16,139.13,25.71807312]
[1764316998010,3.16,139.16,139.13,26.41807312]
[1764316998211,3.16,139.16,139.14,0.7]
[1764316998729,3.16,139.16,139.14,7.88691709]
[1764316998935,3.16,139.16,139.11,0.1]
[1764316998936,8.80994492,139.14,139.11,0.1]
[1764316999114,3.44432314,139.13,139.11,0.8]
[1764317000008,3.44432314,139.13,139.11,7.98854681]
[1764317000207,0.28432314,139.13,139.11,7.98854681]
[1764317000420,3.16,139.13,139.12,2.92168666]
[1764317001008,3.16,139.13,139.12,10.10972576]
[1764317006838,9.79426806,139.16,139.12,10.10972576]
[1764317007038,16.308864,139.18,139.15,2.22168666]
[1764317007039,0.7,139.18,139.15,2.22168666]
[1764317007242,3.16,139.16,139.13,0.7]
[1764317008039,3.16,139.16,139.14,7.18700589]
[1764317008224,0.7,139.18,139.14,7.18700589]
[1764317008425,3.16,139.17,139.15,2.22168666]
[1764317009131,3.44432314,139.17,139.16,2.22168666]
[1764317010240,3.44432314,139.17,139.13,2.22168666]
[1764317010241,20.13972469,139.17,139.13,2.22168666]
[1764317010537,9.09426806,139.17,139.14,0.7]
[1764317010731,0.28432314,139.16,139.14,0.7]
[1764317011936,0.7,139.15,139.13,2.22168666]
[1764317012440,0.7,139.15,139.13,10.10907731]
[1764317012639,0.28432314,139.14,139.12,2.22168666]
[1764317012853,3.16,139.13,139.11,10.2101635]
[1764317014251,3.44432314,139.13,139.12,2.22168666]
[1764317015537,3.44432314,139.13,139.11,7.98847684]
[1764317015746,3.44432314,139.13,139.12,2.22168666]
[1764317017340,3.44432314,139.13,139.12,9.40972576]
[1764317017718,3.44432314,139.13,139.12,7.1880391]
[1764317018027,3.44432314,139.13,139.12,9.40972576]
[1764317018228,0.28432314,139.13,139.12,9.40972576]
[1764317018529,3.44432314,139.13,139.12,9.40972576]
[1764317020248,3.16,139.15,139.12,10.10972576]
[1764317020450,3.16,139.15,139.14,2.22168666]
[1764317020826,3.16,139.15,139.14,2.87168666]
[1764317022261,3.44432314,139.15,139.11,0.1]
[1764317022423,0.95432314,139.14,139.12,2.22168666]
[1764317023134,0.95432314,139.14,139.11,2.97168666]
[1764317023334,0.95432314,139.14,139.12,7.18782071]
[1764317023525,0.67,139.13,139.11,7.28840143]
[1764317023732,0.67,139.13,139.11,9.51008809]
[1764317023932,0.67,139.13,139.11,10.16008809]
[1764317024127,9.09426806,139.14,139.11,10.16008809]
[1764317024333,9.76426806,139.14,139.11,10.16008809]
[1764317026028,3.16,139.15,139.13,2.22168666]
[1764317026433,3.16,139.15,139.13,2.87168666]
[1764317027248,3.44432314,139.15,139.14,7.18700589]
[1764317028345,3.44432314,139.15,139.14,9.40869255]
[1764317031660,3.44432314,139.15,139.14,10.05869255]
[1764317032031,3.44432314,139.15,139.14,9.40869255]
[1764317032231,3.44432314,139.15,139.14,10.05869255]
[1764317032932,3.44432314,139.15,139.14,9.40869255]
[1764317033334,3.44432314,139.15,139.14,10.05869255]
[1764317033663,3.44432314,139.15,139.14,9.40869255]
[1764317033956,0.28432314,139.15,139.14,9.40869255]
[1764317034136,3.44432314,139.15,139.14,10.05869255]
[1764317036245,3.44432314,139.16,139.14,10.05869255]
[1764317036747,3.44432314,139.16,139.14,11.31029068]
[1764317038068,3.16,139.16,139.15,4.12328479]
[1764317038279,0.95432314,139.19,139.16,7.18597298]
[1764317038280,0.28432314,139.19,139.16,7.18597298]
[1764317038453,3.16,139.17,139.16,11.30925777]
[1764317050069,3.16,139.18,139.16,11.30925777]
[1764317050269,9.76426806,139.19,139.17,3.47328479]
[1764317050571,3.44432314,139.18,139.17,3.47328479]
[1764317051572,0.28432314,139.18,139.17,3.47328479]
[1764317051771,3.44432314,139.18,139.17,3.47328479]
[1764317052256,3.16,139.19,139.17,11.36874142]
[1764317052450,3.16,139.19,139.18,3.47328479]
[1764317052656,3.16,139.19,139.18,4.18328479]
[1764317053265,3.16,139.19,139.18,11.36822515]
[1764317058160,3.44432314,139.2,139.18,11.36822515]
[1764317058360,3.44432314,139.2,139.19,3.47328479]
[1764317059064,7.88268927,139.23,139.19,11.33770895]
[1764317059268,3.16,139.2,139.19,11.33770895]
[1764317059468,3.16,139.2,139.19,10.65770895]
[1764317059975,3.16,139.2,139.19,11.33770895]
[1764317062961,0.28432314,139.22,139.19,29.29876937]
[1764317063268,3.44432314,139.22,139.21,3.47328479]
[1764317063576,4.14432314,139.22,139.2,3.47328479]
[1764317063884,3.44432314,139.22,139.2,4.15328479]
[1764317064259,3.44432314,139.22,139.2,0.68]
[1764317064462,3.44432314,139.22,139.2,4.15328479]
[1764317064662,3.44432314,139.22,139.21,7.18339199]
[1764317065079,3.44432314,139.22,139.2,11.33695106]
[1764317067485,3.44432314,139.22,139.2,7.86366627]
[1764317068978,2.94432314,139.22,139.2,7.86366627]
[1764317070364,2.94432314,139.22,139.2,10.65695106]
[1764317070567,2.94432314,139.22,139.21,0.68]
[1764317071458,2.94432314,139.22,139.21,7.86339199]
[1764317072158,3.16,139.22,139.21,7.86339199]
[1764317073987,3.86,139.22,139.18,11.33822515]
[1764317074193,0.7,139.21,139.18,25.82729127]
[1764317074789,0.7,139.21,139.19,0.68]
[1764317074971,3.86,139.22,139.19,0.68]
[1764317075495,3.86,139.22,139.19,7.86402581]
[1764317075786,3.86,139.22,139.19,0.68]
[1764317076568,3.86,139.22,139.19,7.86438192]
[1764317076895,9.79426806,139.21,139.17,4.15328479]
[1764317077094,9.79426806,139.21,139.17,7.86530749]
[1764317077277,0.7,139.2,139.17,7.86530749]
[1764317077481,11.96994492,139.19,139.15,11.33977418]
[1764317078096,11.96994492,139.19,139.16,0.68]
[1764317078294,12.66994492,139.19,139.16,0.68]
[1764317080702,12.66994492,139.19,139.16,7.86590629]
[1764317081801,12.66994492,139.19,139.16,11.33919108]
[1764317082388,0.66,139.21,139.17,4.17328479]
[1764317082581,3.16,139.2,139.18,3.47328479]
[1764317082906,3.16,139.2,139.18,11.35785382]
[1764317083699,3.16,139.2,139.17,7.18529233]
[1764317083907,9.75426806,139.19,139.16,0.7]
[1764317085419,9.75426806,139.19,139.16,7.88585736]
[1764317085812,9.75426806,139.19,139.16,11.35914215]
[1764317087526,9.75426806,139.19,139.17,10.65869157]
[1764317087722,9.75426806,139.19,139.17,11.35869157]
[1764317087898,9.75426806,139.19,139.17,10.65869157]
[1764317090697,0.94432314,139.21,139.18,4.17328479]
[1764317090888,3.16,139.2,139.18,4.17328479]
[1764317091093,0.94432314,139.21,139.19,3.47328479]
[1764317091324,3.16,139.2,139.19,3.47328479]
[1764317091526,3.16,139.2,139.19,10.65770895]
[1764317092104,3.16,139.2,139.19,11.35770895]
[1764317093214,3.16,139.2,139.19,7.88442416]
[1764317093519,3.16,139.2,139.19,11.35770895]
[1764317096219,0.66,139.23,139.19,11.35770895]
[1764317096425,3.16,139.2,139.19,7.18442416]
[1764317096597,3.16,139.21,139.19,10.65770895]
[1764317096801,3.16,139.21,139.2,3.47328479]
[1764317097022,9.46994492,139.25,139.2,4.17328479]
[1764317097223,3.82,139.24,139.22,3.47328479]
[1764317097527,3.16,139.23,139.22,3.47328479]
[1764317098017,0.28432314,139.24,139.22,3.47328479]
[1764317098324,3.16,139.23,139.22,3.47328479]
[1764317098519,3.16,139.23,139.22,2.22040196]
[1764317098707,3.16,139.23,139.22,2.92040196]
[1764317099622,3.16,139.23,139.22,10.10327798]
[1764317100828,0.28432314,139.24,139.22,10.10327798]
[1764317101129,3.16,139.23,139.22,10.10327798]
[1764317101528,3.16,139.23,139.22,9.40327798]
[1764317102127,3.16,139.23,139.21,7.88319979]
[1764317102429,3.82,139.23,139.21,10.10360175]
[1764317102626,3.82,139.23,139.21,7.88319979]
[1764317103010,3.16,139.23,139.2,9.40407924]
[1764317103215,3.82,139.23,139.2,10.10407924]
[1764317103611,3.16,139.23,139.21,2.92040196]
[1764317103829,3.82,139.23,139.21,2.92040196]
[1764317104633,3.82,139.23,139.21,10.10358434]
[1764317105204,3.44432314,139.23,139.22,2.22040196]
[1764317105702,3.16,139.23,139.22,2.22040196]
[1764317106000,3.16,139.23,139.22,2.92040196]
[1764317106836,0.28432314,139.24,139.22,10.10305559]
[1764317107032,0.94432314,139.25,139.23,2.92040196]
[1764317107333,3.16,139.24,139.23,2.92040196]
[1764317107634,3.16,139.24,139.23,2.22040196]
[1764317108334,3.16,139.24,139.23,2.92040196]
[1764317109034,3.16,139.24,139.23,10.10276208]
[1764317111239,3.16,139.25,139.23,10.10276208]
[1764317111447,3.16,139.25,139.24,2.92040196]
[1764317113326,1.19432314,139.27,139.24,10.10202238]
[1764317113523,3.16,139.25,139.24,7.88162042]
[1764317114033,3.16,139.25,139.24,7.18162042]
[1764317114632,3.16,139.25,139.24,7.88162042]
[1764317114823,3.16,139.25,139.24,10.10202238]
[1764317115138,1.19432314,139.27,139.24,10.10202238]
[1764317115322,3.44432314,139.26,139.25,2.22040196]
[1764317115726,3.44432314,139.26,139.25,9.4017305]
[1764317116449,0.2,139.27,139.25,10.1017305]
[1764317116611,3.36,139.27,139.26,2.92040196]
[1764317117635,3.36,139.27,139.26,10.10121482]
[1764317120135,0.2,139.27,139.26,10.10121482]
[1764317122017,0.2,139.27,139.26,12.97694723]
[1764317122638,0.2,139.27,139.26,10.10121482]
[1764317122822,0.2,139.27,139.26,12.97694723]
[1764317123027,1e-08,139.27,139.26,29.28581123]
[1764317125646,0.2,139.29,139.28,16.308864]
[1764317125852,0.2,139.29,139.28,18.52926596]
[1764317126028,0.2,139.29,139.28,19.22926596]
[1764317126355,0.2,139.29,139.28,22.10458494]
[1764317127058,0.2,139.29,139.28,19.88418298]
[1764317127226,0.2,139.29,139.28,26.40904769]
[1764317131970,0.89,139.29,139.27,9.4003146]
[1764317132161,0.89,139.29,139.26,9.40102175]
[1764317132462,0.69,139.28,139.26,9.40102175]
[1764317132752,0.69,139.28,139.26,2.22040196]
[1764317133247,0.69,139.28,139.26,9.40119643]
[1764317134752,0.83216157,139.28,139.26,9.40119643]
[1764317138157,0.83216157,139.28,139.27,2.22040196]
[1764317138936,4.13432314,139.28,139.27,2.22040196]
[1764317141162,0.97432314,139.28,139.27,2.22040196]
[1764317141338,3.16,139.28,139.27,10.10064065]
[1764317141663,0.2,139.29,139.27,10.10064065]
[1764317141861,0.2,139.29,139.28,2.92040196]
[1764317143051,0.2,139.29,139.28,10.10018369]
[1764317148848,0.89,139.29,139.27,9.40047969]
[1764317149877,0.69,139.28,139.26,7.18059284]
[1764317150057,0.69,139.28,139.27,25.70956322]
[1764317150373,0.89,139.29,139.27,25.70956322]
[1764317150577,0.89,139.29,139.26,16.308864]
[1764317150747,0.97432314,139.28,139.25,9.4017305]
[1764317150948,3.16,139.27,139.25,9.4017305]
[1764317151249,3.85,139.27,139.25,9.4017305]
[1764317153674,3.85,139.27,139.26,2.22040196]
[1764317154477,3.85,139.27,139.26,9.40121482]
[1764317156467,3.85,139.27,139.26,7.18081286]
[1764317158683,3.85,139.27,139.25,10.64929797]
[1764317161087,0.28432314,139.28,139.26,4.16796943]
[1764317161292,3.16,139.27,139.26,4.16796943]
[1764317161590,0.2,139.29,139.26,4.16796943]
[1764317161783,3.16,139.28,139.27,4.16796943]
[1764317161982,3.16,139.28,139.27,3.46796943]
[1764317163068,3.16,139.28,139.27,10.64826669]
[1764317163494,3.16,139.28,139.27,11.34826669]
[1764317164199,0.2,139.29,139.27,11.34826669]
[1764317164402,0.69,139.28,139.25,23.48979268]
[1764317164700,4.33432314,139.29,139.26,4.16796943]
[1764317164993,4.33432314,139.29,139.26,11.34842862]
[1764317165680,0.69,139.28,139.25,16.308864]
[1764317165994,0.69,139.28,139.25,23.4900919]
[1764317166593,0.69,139.28,139.24,7.18146328]
[1764317167188,0.69,139.28,139.24,11.34943271]
[1764317168795,0.69,139.28,139.24,10.64943271]
[1764317169190,7.86987473,139.28,139.24,10.64943271]
[1764317169395,0.28432314,139.27,139.24,7.18146328]
[1764317169589,0.97432314,139.27,139.24,7.18146328]
[1764317170099,0.69,139.26,139.23,7.18207671]
[1764317170409,3.16,139.25,139.23,7.18207671]
[1764317170715,3.16,139.25,139.22,10.65061406]
[1764317170915,3.86,139.25,139.22,10.65061406]
[1764317171078,3.86,139.25,139.22,11.32061406]
[1764317174206,3.16,139.25,139.23,4.13796943]
[1764317175684,3.16,139.25,139.23,11.32020188]
[1764317176204,3.16,139.25,139.23,10.65020188]
[1764317176500,3.16,139.25,139.24,4.13796943]
[1764317177786,3.16,139.25,139.24,11.31981372]
[1764317178009,3.16,139.26,139.24,11.31981372]
[1764317179400,3.16,139.26,139.25,3.46796943]
[1764317179913,3.16,139.26,139.25,10.64929797]
[1764317182213,0.2,139.29,139.25,10.64929797]
[1764317182417,4.12432314,139.28,139.25,11.31929797]
[1764317182999,0.2,139.29,139.26,0.67]
[1764317183202,3.16,139.27,139.26,4.13796943]
[1764317183589,3.16,139.28,139.26,4.13796943]
[1764317183886,3.36,139.29,139.27,4.13796943]